bitfinex-derivatives/quotes_ETHF0:USTF0_20241018
["timestamp","ask_amount","ask_price","bid_price","bid_amount"]
[1729260937713,3.2078,2621.0,2620.1,3.2078]
[1729260937916,3.66,2620.9,2620.0,3.4078]
[1729260938118,3.66,2620.9,2620.0,0.2]
[1729260938334,0.38165,2620.6,2620.0,1.15432]
[1729260938520,3.66,2620.9,2620.3,0.38167]
[1729260938724,4.61403,2620.9,2620.0,0.2]
[1729260938913,3.66,2620.6,2620.0,0.2]
[1729260939114,3.2078,2620.4,2620.0,0.2]
[1729260939317,2.5941,2620.5,2620.0,0.2]
[1729260939523,0.38169,2620.3,2620.0,0.58173]
[1729260939821,2.5941,2620.5,2620.0,0.2]
[1729260940024,3.2078,2620.4,2620.0,0.2]
[1729260940224,3.2078,2620.7,2620.0,8.02213]
[1729260940424,3.2078,2620.7,2620.0,0.2]
[1729260940624,0.38165,2620.6,2620.3,0.38168]
[1729260941123,3.2078,2620.7,2620.0,0.2]
[1729260941516,3.2078,2620.7,2620.2,0.38169]
[1729260941517,0.38167,2620.5,2620.2,0.38169]
[1729260941818,3.2078,2620.7,2620.0,0.2]
[1729260942023,0.38171,2620.2,2620.0,0.2]
[1729260942525,0.38172,2620.1,2620.0,0.2]
[1729260942722,1.68082,2620.1,2620.0,0.2]
[1729260943420,4.88862,2620.1,2620.0,0.2]
[1729260944825,8.70542,2620.1,2620.0,0.2]
[1729260945525,12.36542,2620.1,2620.0,0.2]
[1729260946123,0.38175,2619.9,2619.7,0.38177]
[1729260946319,3.2078,2619.8,2619.6,0.38178]
[1729260946520,3.2078,2619.8,2619.2,5.19014999]
[1729260946717,0.38178,2619.7,2619.4,0.38181]
[1729260947019,41.18178,2619.7,2619.2,1.98234999]
[1729260947422,41.18178,2619.7,2619.4,0.38181]
[1729260947622,41.18178,2619.7,2619.2,1.98234999]
[1729260947623,40.8,2619.7,2619.5,0.38179]
[1729260948126,40.8,2619.7,2619.4,0.38181]
[1729260948520,3.58957,2619.8,2619.5,0.3818]
[1729260948719,3.2078,2619.8,2619.2,0.67164999]
[1729260948920,3.2078,2619.8,2619.2,0.38184]
[1729260948921,0.38178,2619.7,2619.2,0.38184]
[1729260949222,0.38178,2619.7,2618.9,3.66]
[1729260949223,0.3818,2619.6,2619.1,0.38185]
[1729260949423,0.38179,2619.6,2619.1,0.38185]
[1729260949621,41.18178,2619.7,2619.3,0.38183]
[1729260949821,40.8,2619.7,2619.2,6.8678]
[1729260950123,3.2078,2619.8,2619.5,0.38179]
[1729260950315,3.2078,2619.8,2619.2,6.8678]
[1729260950624,3.2078,2619.8,2618.9,3.09070631]
[1729260950625,0.38178,2619.7,2618.9,9.47006555]
[1729260950828,0.38178,2619.7,2619.3,0.38182]
[1729260951127,0.38179,2619.6,2619.2,0.38184]
[1729260951319,3.2078,2619.8,2618.9,8.51534555]
[1729260951627,3.2078,2619.8,2618.9,9.47006555]
[1729260951926,3.2078,2619.8,2619.2,3.66]
[1729260952224,3.2078,2619.8,2619.5,0.3818]
[1729260952715,0.38182,2619.4,2619.1,0.97727283]
[1729260952922,3.66,2619.4,2618.9,3.2078]
[1729260953120,40.8,2619.9,2618.7,0.67569244]
[1729260953121,0.38191,2618.8,2618.7,0.67569244]
[1729260953421,6.8678,2619.2,2618.7,0.67569244]
[1729260953928,2.6717,2619.3,2619.1,0.38186]
[1729260954226,4.5723,2619.8,2619.6,0.38178]
[1729260954419,4.5723,2619.8,2619.1,0.97727283]
[1729260954420,3.2078,2619.8,2619.1,0.97727283]
[1729260954620,3.2078,2619.8,2619.1,4.63727283]
[1729260954820,3.2078,2619.8,2619.7,0.38178]
[1729260955026,1.3542,2620.0,2619.1,4.63727283]
[1729260955227,0.38176,2619.8,2619.4,0.38181]
[1729260955630,0.38177,2619.8,2619.4,0.38181]
[1729260955927,3.2078,2619.9,2619.1,3.66]
[1729260956132,1.3645,2620.3,2620.0,0.38172]
[1729260956426,0.3817,2620.2,2619.8,0.38175]
[1729260956633,4.5723,2620.3,2619.7,3.2078]
[1729260958032,4.5723,2620.3,2620.0,0.38172]
[1729260958333,0.38171,2620.2,2619.9,0.38174]
[1729260958528,0.38172,2620.1,2619.8,0.38175]
[1729260958726,4.5723,2620.3,2619.7,3.2078]
[1729260958927,0.38171,2620.2,2619.8,0.38175]
[1729260959128,4.5723,2620.3,2619.9,0.38173]
[1729260959434,40.8,2620.6,2619.9,3.66]
[1729260959639,1.3542,2620.7,2620.0,0.95432]
[1729260959936,1.73583,2620.7,2620.4,0.38166]
[1729260960143,1.3542,2620.7,2620.0,0.97727283]
[1729260960437,0.38167,2620.5,2620.1,0.38171]
[1729260960633,1.3542,2620.7,2620.5,0.38166]
[1729260961035,1.3542,2620.7,2620.2,2.98]
[1729260961036,1.73584,2620.7,2620.4,0.38167]
[1729260961231,1.3542,2620.7,2620.4,0.38167]
[1729260961432,1.3542,2620.7,2620.6,0.38164]
[1729260961631,3.2078,2620.9,2620.6,2.98]
[1729260961939,0.95374,2621.7,2620.8,2.98]
[1729260961940,3.2078,2621.7,2620.8,2.98]
[1729260962239,3.2078,2621.7,2621.4,0.38152]
[1729260962540,3.2078,2621.7,2621.1,2.98]
[1729260962837,0.38157,2621.1,2620.7,1.35889283]
[1729260963030,6.1878,2621.4,2620.6,2.98]
[1729260963341,1.2457,2621.3,2620.6,2.98]
[1729260963640,0.38156,2621.2,2620.7,0.38162]
[1729260963938,1.62725,2621.3,2620.5,8.50859248]
[1729260964140,1.2457,2621.3,2621.0,0.38158]
[1729260964326,1.2457,2621.3,2620.8,3.67]
[1729260964530,1.2457,2621.3,2620.8,6.8778]
[1729260964737,1.2457,2621.3,2620.6,0.97727283]
[1729260965040,0.38157,2621.2,2620.7,0.38162]
[1729260965232,1.2457,2621.3,2620.6,0.97727283]
[1729260965538,1.2457,2621.3,2620.8,0.38161]
[1729260965539,1.62725,2621.3,2620.8,0.38161]
[1729260965927,1.62725,2621.3,2620.6,0.97727283]
[1729260966128,1.62725,2621.3,2620.5,5.30079248]
[1729260966129,1.2457,2621.3,2620.5,5.30079248]
[1729260966443,0.38157,2621.1,2620.7,0.38162]
[1729260966639,0.38156,2621.2,2620.8,0.38161]
[1729260966832,1.2457,2621.3,2620.8,3.67]
[1729260967033,1.2457,2621.3,2620.7,4.18507283]
[1729260967034,1.2457,2621.3,2620.7,3.2078]
[1729260967235,0.38157,2621.2,2620.7,3.58942]
[1729260967443,0.38157,2621.2,2620.8,0.38161]
[1729260967641,1.2457,2621.3,2620.9,0.3816]
[1729260967642,1.62725,2621.3,2620.9,0.3816]
[1729260967827,3.2078,2621.4,2620.8,3.67]
[1729260968035,3.2078,2621.4,2620.7,4.18507283]
[1729260968232,3.2078,2621.4,2620.7,3.2078]
[1729260968433,0.38158,2621.1,2620.7,3.2078]
[1729260968632,0.38158,2621.1,2620.7,3.58943]
[1729260968833,3.2078,2621.4,2620.5,5.30079248]
[1729260969039,3.2078,2621.4,2620.9,0.3816]
[1729260969339,3.2078,2621.4,2621.1,3.67]
[1729260969536,3.2078,2621.4,2620.8,3.67]
[1729260969736,3.2078,2621.4,2620.7,4.18507283]
[1729260969939,3.2078,2621.4,2620.8,3.67]
[1729260970240,3.2078,2621.4,2621.0,0.38157]
[1729260970441,4.4944,2621.7,2621.1,3.67]
[1729260970639,4.87589,2621.7,2621.3,0.38154]
[1729260971143,0.3815,2621.6,2621.2,0.38155]
[1729260971439,4.4944,2621.7,2621.0,3.2078]
[1729260971747,0.3815,2621.6,2621.2,0.38155]
[1729260972043,4.4944,2621.7,2621.0,3.2078]
[1729260972244,3.2078,2622.4,2621.6,3.67]
[1729260972436,0.38141,2622.3,2621.9,0.38145]
[1729260972747,0.38143,2622.1,2621.7,4.05148]
[1729260972946,0.38143,2622.1,2621.7,3.67]
[1729260973140,0.38142,2622.2,2621.8,0.38147]
[1729260973545,40.8,2622.3,2622.0,0.38143]
[1729260973742,40.8,2622.3,2622.0,0.38144]
[1729260974044,1.3452,2622.5,2621.9,6.8778]
[1729260974341,4.62318,2623.2,2622.0,3.8136]
[1729260974342,3.2078,2623.0,2622.0,3.8136]
[1729260974541,44.0078,2623.0,2622.2,3.2078]
[1729260974934,44.0078,2623.0,2622.7,0.38133]
[1729260975138,44.0078,2623.0,2622.5,3.67]
[1729260975442,44.0078,2623.0,2622.6,0.38135]
[1729260975745,44.3891,2623.0,2622.6,0.38135]
[1729260975944,44.3891,2623.0,2622.5,3.67]
[1729260975945,44.0078,2623.0,2622.5,3.67]
[1729260976253,44.38911,2623.0,2622.5,4.05136]
[1729260976444,0.38131,2622.9,2622.5,4.05136]
[1729260976635,44.0078,2623.0,2622.5,3.67]
[1729260976834,44.0078,2623.0,2622.2,6.8778]
[1729260977345,44.0078,2623.0,2622.6,0.38135]
[1729260977549,44.0078,2623.0,2622.4,3.67]
[1729260977747,3.2078,2623.3,2622.9,4.05131]
[1729260978048,3.2078,2623.6,2623.2,3.67]
[1729260978250,3.2078,2623.9,2623.5,3.67]
[1729260978546,3.2078,2623.9,2623.6,3.67]
[1729260978547,3.58897,2623.9,2623.6,3.67]
[1729260978747,42.1167,2624.1,2623.8,3.67]
[1729260978748,1.3167,2624.1,2623.8,3.67]
[1729260979246,1.2688,2624.3,2623.8,3.67]
[1729260979446,0.38108,2624.5,2624.1,3.67]
[1729260979639,0.38108,2624.5,2623.8,3.2078]
[1729260979640,1.69775,2624.7,2624.4,3.67]
[1729260979841,1.3167,2624.7,2624.4,3.67]
[1729260980441,3.2078,2624.8,2624.4,3.67]
[1729260980641,3.2078,2625.1,2624.6,3.67]
[1729260980944,1.3167,2625.4,2625.1,3.67]
[1729260980945,4.5245,2625.4,2625.1,3.67]
[1729260981248,0.38099,2625.2,2624.8,3.67]
[1729260981457,4.5245,2625.4,2625.0,3.67]
[1729260982048,4.90546,2625.4,2625.0,3.67]
[1729260982241,4.5245,2625.4,2625.0,3.67]
[1729260982435,0.38097,2625.3,2624.8,3.2078]
[1729260982649,4.5245,2625.4,2624.8,3.2078]
[1729260982855,3.2078,2625.4,2625.3,3.67]
[1729260983449,0.38093,2625.6,2625.3,3.67]
[1729260983845,3.2078,2625.7,2625.3,3.67]
[1729260984041,3.5887,2625.7,2625.3,3.67]
[1729260984248,3.2078,2625.7,2625.3,3.67]
[1729260984649,0.38094,2625.5,2625.1,3.2078]
[1729260984951,3.2078,2625.7,2625.3,3.67]
[1729260985252,3.2078,2625.7,2625.1,3.2078]
[1729260985442,0.38104,2624.8,2624.5,3.2078]
[1729260985642,3.2078,2625.1,2624.5,3.2078]
[1729260986051,0.38106,2624.6,2624.5,3.2078]
[1729260986244,3.2078,2625.0,2624.2,3.2078]
[1729260986446,0.38109,2624.4,2624.2,3.2078]
[1729260986645,0.3811,2624.4,2624.2,3.2078]
[1729260986845,0.38102,2624.9,2624.2,3.2078]
[1729260987047,0.38108,2624.5,2624.2,3.2078]
[1729260987254,3.2078,2625.0,2624.2,3.2078]
[1729260987444,41.18103,2624.9,2624.4,3.67]
[1729260987750,40.8,2624.9,2624.8,3.67]
[1729260987955,3.2078,2625.7,2624.8,6.8778]
[1729260988254,3.2078,2625.7,2625.6,3.67]
[1729260988455,0.38088,2625.9,2625.6,3.67]
[1729260988645,3.2078,2626.0,2625.4,6.8778]
[1729260988844,0.3809,2625.8,2625.4,3.67]
[1729260989050,3.2078,2626.0,2625.4,3.67]
[1729260989350,3.2078,2626.0,2625.3,3.2078]
[1729260989648,3.2078,2626.0,2625.1,3.67]
[1729260990051,6.2073,2626.2,2624.6,6.8778]
[1729260990052,6.8778,2625.7,2624.6,6.8778]
[1729260990251,3.2078,2625.2,2624.6,6.8778]
[1729260990553,1.2898,2625.6,2624.9,3.67]
[1729260990754,0.38098,2625.2,2624.9,3.67]
[1729260991058,1.09891597,2625.6,2625.1,3.67]
[1729260991353,0.38091,2625.7,2625.3,3.2078]
[1729260991549,0.38093,2625.6,2625.3,3.2078]
[1729260991752,3.2078,2625.8,2625.3,3.2078]
[1729260991951,0.38094,2625.5,2625.3,3.2078]
[1729260992151,3.2078,2625.8,2625.3,3.2078]
[1729260992152,0.38095,2625.4,2625.3,3.2078]
[1729260992454,0.38094,2625.5,2625.3,3.2078]
[1729260992856,0.38092,2625.6,2625.3,3.2078]
[1729260993153,3.2078,2625.8,2625.3,3.2078]
[1729260993555,0.38091,2625.7,2625.3,3.2078]
[1729260993863,3.2078,2625.8,2625.5,3.67]
[1729260994054,3.2078,2625.8,2625.7,3.67]
[1729260994453,3.2078,2625.8,2625.5,3.67]
[1729260994655,3.2078,2625.8,2625.3,3.2078]
[1729260994656,0.38092,2625.6,2625.3,3.2078]
[1729260994954,3.5887,2625.8,2625.3,3.58875]
[1729260995247,0.38091,2625.7,2625.3,3.58876]
[1729260995454,3.5887,2625.8,2625.4,0.38094]
[1729260995754,3.5887,2625.8,2625.5,3.67]
[1729260995952,0.3809,2625.7,2625.5,3.67]
[1729260996149,3.5887,2625.8,2625.5,3.67]
[1729260996356,0.38091,2625.7,2625.5,3.67]
[1729260996660,3.5887,2625.8,2625.5,3.67]
[1729260996841,3.2078,2625.8,2625.5,3.67]
[1729260997041,3.2078,2626.1,2625.7,3.67]
[1729260997247,0.38085,2626.1,2625.7,4.0509]
[1729260997452,2.93334,2626.2,2625.7,3.67]
[1729260997658,2.93334,2626.2,2625.7,4.05089]
[1729260997955,0.38085,2626.1,2625.7,4.05089]
[1729260998154,3.2078,2626.4,2625.7,3.67]
[1729260998370,0.38082,2626.3,2626.0,3.67]
[1729260998749,41.18082,2626.3,2626.0,3.67]
[1729260998950,3.58861,2626.4,2626.0,4.05086]
[1729260999454,3.2078,2626.4,2626.3,3.67]
[1729260999660,3.2078,2626.8,2626.6,0.38077]
[1729260999856,3.2078,2626.8,2626.7,0.38076]
[1729261000151,0.38073,2626.9,2626.6,3.67]
[1729261000354,42.1728,2627.2,2626.6,3.67]
[1729261000355,0.38075,2626.8,2626.6,3.67]
[1729261000757,42.1728,2627.2,2626.6,3.67]
[1729261000954,0.38076,2626.7,2626.6,3.67]
[1729261001152,0.38079,2626.5,2626.2,4.5525]
[1729261001467,0.38077,2626.6,2626.2,4.93332]
[1729261002054,3.2078,2626.8,2626.2,4.5525]
[1729261002356,3.2078,2626.8,2626.4,3.67]
[1729261002663,0.38079,2626.6,2626.4,3.67]
[1729261002964,3.2078,2626.8,2626.4,3.67]
[1729261003658,3.2078,2627.1,2626.7,3.67]
[1729261004054,0.38073,2627.0,2626.7,3.67]
[1729261004456,3.2078,2627.1,2626.7,3.67]
[1729261004951,0.38073,2627.0,2626.7,3.67]
[1729261005354,3.2078,2627.1,2626.9,3.67]
[1729261005563,1.3101,2627.4,2627.0,0.38071]
[1729261005564,4.89857,2627.4,2627.0,0.38071]
[1729261005875,4.89857,2627.4,2627.2,3.67]
[1729261006054,0.38067,2627.3,2627.2,3.67]
[1729261006252,0.38068,2627.3,2627.0,3.67]
[1729261006458,0.38068,2627.3,2627.2,3.67]
[1729261006658,4.89856,2627.4,2627.2,3.67]
[1729261007164,0.38067,2627.3,2627.2,3.67]
[1729261007757,0.38067,2627.3,2626.6,3.85251154]
[1729261007758,0.3807,2627.1,2626.7,3.67]
[1729261007958,4.5179,2627.4,2626.6,3.2078]
[1729261007959,0.38076,2626.7,2626.6,3.2078]
[1729261008256,3.2078,2627.1,2626.5,3.67]
[1729261008456,0.38076,2626.7,2626.5,3.67]
[1729261008651,0.38075,2626.8,2626.5,3.67]
[1729261009056,1.4872,2627.0,2626.5,3.67]
[1729261009258,0.38076,2626.7,2626.5,3.67]
[1729261009460,1.4872,2627.0,2626.5,3.67]
[1729261009671,1.4872,2627.0,2626.8,3.67]
[1729261009968,1.86792,2627.0,2626.8,3.67]
[1729261010167,1.4872,2627.0,2626.8,3.67]
[1729261010371,1.86791,2627.0,2626.8,3.67]
[1729261011055,0.38069,2627.2,2626.8,3.67]
[1729261011256,3.2078,2627.3,2627.1,3.67]
[1729261011463,3.58848,2627.3,2627.1,3.67]
[1729261011768,3.2078,2627.3,2627.1,3.67]
[1729261011962,3.58848,2627.3,2627.1,3.67]
[1729261012270,1.3101,2627.4,2627.1,3.67]
[1729261012573,1.4872,2627.6,2627.1,6.8778]
[1729261012770,0.38068,2627.3,2627.1,6.8778]
[1729261012960,0.38069,2627.2,2627.1,3.67]
[1729261013358,0.95164,2627.5,2626.7,3.2078]
[1729261013359,4.1595,2627.3,2626.8,3.67]
[1729261013567,0.38072,2627.0,2626.8,3.67]
[1729261013870,1.4521,2627.4,2626.8,3.67]
[1729261014056,0.38068,2627.3,2627.2,3.67]
[1729261014462,0.38067,2627.3,2627.2,3.67]
[1729261014863,1.83277,2627.4,2627.2,3.67]
[1729261015058,0.38067,2627.3,2627.2,3.67]
[1729261019166,0.38073,2626.9,2626.7,3.2078]
[1729261019374,0.38071,2627.1,2626.8,0.38074]
[1729261019567,0.38071,2627.1,2627.0,3.67]
[1729261020365,0.95169,2627.3,2626.7,3.67]
[1729261020765,4.6599,2627.4,2627.0,3.67]
[1729261021164,0.38068,2627.3,2627.0,4.05071]
[1729261021364,44.0078,2627.7,2627.5,0.38064]
[1729261021561,0.38059,2627.9,2627.6,0.38063]
[1729261021761,3.2078,2628.0,2627.8,3.67]
[1729261022369,3.2078,2628.0,2627.9,3.8056]
[1729261022568,3.2078,2628.3,2627.9,3.8056]
[1729261022870,3.2078,2628.3,2627.8,3.67]
[1729261022871,3.2078,2628.4,2627.8,3.67]
[1729261023167,0.38058,2627.9,2627.8,3.67]
[1729261023360,1.4159,2628.2,2627.8,4.05059]
[1729261023361,1.79645,2628.2,2627.8,4.05059]
[1729261023569,40.8,2628.6,2628.1,3.67]
[1729261023865,40.8,2628.6,2628.4,3.67]
[1729261023866,0.3805,2628.5,2628.4,3.67]
[1729261024069,40.8,2628.6,2628.4,7.4748]
[1729261024273,2.7794,2628.7,2628.4,3.67]
[1729261024473,3.15988,2628.7,2628.4,3.67]
[1729261024681,43.5794,2628.7,2628.4,3.67]
[1729261024968,43.95987,2628.7,2628.4,3.67]
[1729261025278,3.15988,2628.7,2628.4,3.67]
[1729261025574,0.3805,2628.5,2628.4,3.67]
[1729261025762,2.7794,2628.7,2628.4,3.67]
[1729261025763,0.38049,2628.6,2628.4,3.67]
[1729261026280,0.38053,2628.3,2628.1,3.67]
[1729261026467,2.7794,2628.7,2628.1,3.67]
[1729261026468,0.38054,2628.2,2628.1,3.67]
[1729261026663,2.7794,2628.7,2628.1,3.67]
[1729261026865,0.38052,2628.4,2628.1,3.67]
[1729261027068,0.3805,2628.5,2628.4,3.67]
[1729261027470,2.7794,2628.7,2628.4,3.67]
[1729261027676,0.38048,2628.6,2628.4,3.67]
[1729261027877,0.3805,2628.5,2628.4,3.67]
[1729261029070,0.38055,2628.2,2628.1,3.67]
[1729261029277,2.7794,2628.7,2628.1,3.67]
[1729261029582,2.7794,2628.7,2628.4,3.67]
[1729261029876,1.72707,2628.7,2628.4,3.67]
[1729261030072,3.58827,2628.8,2628.6,3.67]
[1729261030275,3.2078,2628.8,2628.6,3.67]
[1729261030667,0.38047,2628.7,2628.6,3.67]
[1729261031274,0.3805,2628.6,2628.4,3.67]
[1729261031579,0.38047,2628.7,2628.4,6.8778]
[1729261031778,0.38046,2628.8,2628.6,3.67]
[1729261032277,4.5738,2629.1,2628.6,3.67]
[1729261032578,4.5738,2629.1,2628.4,3.2078]
[1729261032579,3.2078,2629.5,2628.9,3.67]
[1729261032780,3.2078,2629.5,2629.4,3.67]
[1729261032971,3.2078,2629.5,2629.4,7.4732]
[1729261033982,1.343,2629.8,2629.4,10.681]
[1729261034291,1.72332,2629.8,2629.7,3.67]
[1729261034588,0.38031,2629.8,2629.7,3.67]
[1729261034876,0.38031,2629.8,2629.4,3.2078]
[1729261034877,3.2078,2629.8,2629.5,3.67]
[1729261035181,0.38031,2629.8,2629.7,3.67]
[1729261035384,40.8,2630.0,2629.7,7.4724]
[1729261035574,40.8,2630.0,2629.7,3.67]
[1729261035575,41.18029,2630.0,2629.7,3.67]
[1729261035976,1.4855,2630.1,2629.7,3.67]
[1729261036175,1.86577,2630.1,2630.0,3.67]
[1729261036570,1.4855,2630.1,2630.0,3.67]
[1729261036878,41.18026,2630.2,2630.0,3.67]
[1729261037076,0.38026,2630.2,2630.0,3.67]
[1729261037272,1.4804,2630.5,2630.1,3.8024]
[1729261037583,1.4804,2630.5,2630.0,3.67]
[1729261037584,0.38024,2630.3,2630.2,3.67]
[1729261038671,40.8,2630.4,2630.2,7.4716]
[1729261038883,1.4841,2630.6,2630.2,3.67]
[1729261039078,3.2078,2630.7,2630.5,3.67]
[1729261039482,3.58798,2630.7,2630.5,3.8016]
[1729261039679,3.2078,2630.7,2630.0,3.2078]
[1729261039880,6.41984,2631.0,2630.6,0.38019]
[1729261040078,3.2078,2631.0,2630.3,3.2078]
[1729261040376,3.2078,2631.3,2630.7,0.38017]
[1729261040569,3.2078,2631.3,2630.6,3.2078]
[1729261040570,0.38011,2631.2,2630.6,3.2078]
[1729261040775,3.2078,2631.3,2630.6,3.2078]
[1729261041078,0.38014,2631.0,2630.9,3.67]
[1729261041282,0.38014,2631.0,2630.9,7.4708]
[1729261041581,3.2078,2631.3,2630.9,7.4708]
[1729261041784,3.2078,2631.3,2631.2,3.67]
[1729261041785,3.58789,2631.3,2631.2,3.67]
[1729261042490,3.2078,2631.3,2631.2,7.4708]
[1729261042971,1.414,2632.2,2631.5,0.38005]
[1729261042972,0.38,2632.0,2631.5,0.38005]
[1729261043172,0.38,2632.0,2631.9,3.67]
[1729261043374,1.359,2632.2,2631.9,3.67]
[1729261043573,0.37997,2632.2,2631.9,3.67]
[1729261043774,40.8,2632.4,2631.9,3.67]
[1729261043984,41.17993,2632.4,2632.3,3.67]
[1729261044583,0.37993,2632.4,2632.3,3.67]
[1729261045183,42.1638,2632.8,2632.3,10.677]
[1729261045184,0.37992,2632.6,2632.3,10.677]
[1729261045385,0.37989,2632.7,2632.6,3.67]
[1729261045590,0.37989,2632.7,2632.6,6.8778]
[1729261045788,0.37989,2632.7,2632.6,10.6762]
[1729261045986,0.37989,2632.7,2632.6,6.8778]
[1729261046481,1.74369,2632.8,2632.6,10.6762]
[1729261046677,0.37989,2632.7,2632.6,6.8778]
[1729261047079,0.37989,2632.7,2632.6,3.2078]
[1729261047281,0.37993,2632.4,2632.1,3.67]
[1729261047487,0.37996,2632.2,2632.1,3.67]
[1729261048988,0.38003,2631.7,2631.6,6.8778]
[1729261049189,0.94995,2632.1,2631.3,3.67]
[1729261049190,0.38008,2631.4,2631.3,3.67]
[1729261049395,0.38009,2631.3,2630.9,3.2078]
[1729261049584,0.38014,2631.0,2630.9,3.2078]
[1729261050784,0.38013,2631.1,2630.9,7.0086]
[1729261050983,1.4837,2631.3,2631.0,3.67]
[1729261051285,0.38011,2631.2,2631.0,3.67]
[1729261051789,0.38012,2631.1,2631.0,3.67]
[1729261052697,0.38014,2631.0,2630.9,3.2078]
[1729261052993,0.38018,2630.7,2630.6,3.2078]
[1729261053295,41.75036,2631.0,2630.3,3.2078]
[1729261053296,0.38022,2630.4,2630.3,3.2078]
[1729261053594,40.8,2631.0,2630.0,6.8778]
[1729261053595,0.38027,2630.1,2630.0,6.8778]
[1729261053799,1.3944,2630.3,2629.6,3.2078]
[1729261053982,1.3944,2630.3,2629.6,6.8778]
[1729261054189,0.38031,2629.9,2629.6,6.8778]
[1729261054387,3.2078,2630.2,2629.6,6.8778]
[1729261054583,1.3944,2630.3,2629.6,6.8778]
[1729261054792,0.38031,2629.9,2629.6,6.8778]
[1729261054994,1.3944,2630.3,2629.6,6.8778]
[1729261054995,0.38031,2629.8,2629.6,6.8778]
[1729261055187,0.38032,2629.7,2629.6,3.2078]
[1729261055892,0.38032,2629.7,2629.2,3.2078]
[1729261055893,0.38038,2629.3,2629.2,3.2078]
[1729261056297,0.38038,2629.3,2628.8,3.2078]
[1729261056298,0.38045,2628.9,2628.8,3.2078]
[1729261057087,1.7439,2629.2,2628.8,6.8778]
[1729261057287,3.2078,2629.3,2629.1,3.67]
[1729261057800,3.2078,2629.3,2628.9,0.38044]
[1729261057986,3.2078,2629.3,2628.8,7.3178]
[1729261058186,1.3704,2629.9,2629.1,7.3178]
[1729261058388,1.7507,2629.9,2629.1,7.6982]
[1729261058583,1.7507,2629.9,2629.2,0.3804]
[1729261058788,1.7507,2629.9,2629.1,7.3178]
[1729261058988,1.7507,2629.9,2629.2,0.38039]
[1729261059188,1.7507,2629.9,2629.1,7.6982]
[1729261059387,1.7507,2629.9,2629.2,0.38039]
[1729261059793,1.3704,2629.9,2629.1,7.6982]
[1729261059993,1.3704,2629.9,2629.1,3.2078]
[1729261060197,1.3704,2629.9,2628.8,4.11]
[1729261060398,1.7507,2629.9,2629.2,4.49038]
[1729261060606,0.38031,2629.8,2629.2,4.11]
[1729261060901,1.3704,2629.9,2629.4,0.38036]
[1729261061098,3.2078,2630.0,2629.5,4.49035]
[1729261061589,3.2078,2630.0,2629.5,4.11]
[1729261062301,0.3803,2629.9,2629.3,3.2078]
[1729261062496,0.3803,2629.9,2628.9,1.3428]
[1729261062497,3.2078,2629.7,2628.9,3.2078]
[1729261062701,0.38034,2629.6,2629.0,0.38042]
[1729261063097,0.38034,2629.6,2628.9,3.2078]
[1729261063407,3.58813,2629.7,2628.9,3.2078]
[1729261063597,3.2078,2629.7,2629.0,0.38042]
[1729261063795,3.2078,2629.7,2628.9,3.2078]
[1729261063990,1.4899,2629.6,2628.9,3.2078]
[1729261064191,3.2078,2629.7,2628.9,3.2078]
[1729261064192,3.2078,2629.7,2629.6,0.38034]
[1729261064401,1.3896,2630.3,2629.6,3.2078]
[1729261064595,3.2078,2630.6,2629.8,4.11]
[1729261064794,3.2078,2630.6,2630.3,0.38023]
[1729261064999,3.2078,2630.6,2629.9,3.2078]
[1729261065396,3.588,2630.6,2629.8,7.3178]
[1729261065598,3.2078,2630.6,2630.1,0.38026]
[1729261065797,3.58799,2630.6,2630.1,0.38026]
[1729261066102,3.2078,2630.6,2630.2,0.38024]
[1729261066496,3.2078,2630.6,2629.8,7.3178]
[1729261066696,3.2078,2630.6,2630.3,0.38024]
[1729261066892,3.2078,2630.6,2630.4,0.38022]
[1729261067099,3.2078,2630.6,2630.3,0.38023]
[1729261067395,3.2078,2630.6,2630.2,4.11]
[1729261067396,3.2078,2630.6,2630.4,0.38022]
[1729261067596,0.38015,2630.9,2630.6,0.38019]
[1729261067597,3.2078,2630.9,2630.6,0.38019]
[1729261067905,3.2078,2630.9,2630.5,4.11]
[1729261068100,45.3928,2631.3,2630.5,4.11]
[1729261068298,4.5928,2631.3,2630.5,4.11]
[1729261068498,4.5928,2631.3,2630.5,5.06051]
[1729261068703,4.5928,2631.3,2631.0,0.38013]
[1729261068898,45.7729,2631.3,2630.9,0.38015]
[1729261069098,45.3928,2631.3,2630.9,0.38015]
[1729261069295,4.5928,2631.3,2630.5,4.11]
[1729261069498,4.5928,2631.3,2631.0,0.38013]
[1729261069704,4.5928,2631.3,2630.5,4.11]
[1729261069900,4.97289,2631.3,2630.9,0.38014]
[1729261070100,1.385,2631.3,2631.0,0.38013]
[1729261070303,0.38013,2631.1,2630.7,0.38017]
[1729261070501,1.7651,2631.3,2630.9,0.38014]
[1729261070701,1.7651,2631.3,2630.5,4.11]
[1729261070702,1.385,2631.3,2630.5,4.11]
[1729261070904,0.38013,2631.1,2630.5,4.11]